bitfinex-derivatives/quotes_ETHF0:USTF0_20260312
["timestamp","ask_amount","ask_price","bid_price","bid_amount"]
[1773321598200,0.92921427,2061.3,2060.0,0.95909147]
[1773321599401,0.92921427,2061.3,2060.0,0.96376255]
[1773321600398,0.92921427,2061.1,2060.0,0.96376255]
[1773321600601,0.92921427,2061.0,2060.0,0.00467108]
[1773321600899,0.92921427,2060.9,2060.0,0.00467108]
[1773321601103,0.92921427,2060.9,2060.0,0.96376255]
[1773321602199,0.92921427,2060.9,2060.0,0.00467108]
[1773321602707,0.92921427,2060.9,2060.0,0.96376255]
[1773321603305,0.92921427,2060.9,2060.0,0.00467108]
[1773321603506,0.92921427,2060.7,2059.6,0.95909147]
[1773321603906,0.92921427,2060.3,2058.8,0.95909147]
[1773321604106,0.92921427,2060.1,2058.8,1.20255847]
[1773321604306,0.92921427,2060.1,2058.9,0.95909147]
[1773321604499,0.92921427,2060.1,2058.9,0.96371292]
[1773321605810,5.96779,2060.8,2058.9,0.96371292]
[1773321605811,0.92921427,2060.6,2059.1,0.95909147]
[1773321606111,0.92921427,2060.3,2059.1,0.95909147]
[1773321606406,0.92921427,2060.3,2059.3,0.95909147]
[1773321606602,0.92921427,2060.6,2059.5,0.95909147]
[1773321606803,0.92921427,2060.6,2059.7,0.95909147]
[1773321607207,0.92921427,2060.8,2059.9,0.95909147]
[1773321613717,0.92921427,2060.8,2060.1,0.95909147]
[1773321613916,0.93449888,2061.0,2060.1,0.95909147]
[1773321617616,0.93449888,2061.0,2060.2,0.24341]
[1773321617821,0.00528461,2061.0,2060.4,1.20309147]
[1773321618022,0.00528461,2061.0,2060.4,0.96353588]
[1773321618623,0.93449888,2061.0,2060.4,0.96353588]
[1773321621131,0.00528461,2061.0,2060.4,0.96353588]
[1773321622725,0.93428006,2061.0,2060.4,0.96353588]
[1773321623936,0.00528461,2061.0,2060.4,0.96353588]
[1773321624338,0.92899545,2060.9,2060.4,0.96353588]
[1773321626842,0.92899545,2060.9,2060.4,0.00444441]
[1773321627037,0.92899545,2060.9,2060.4,0.94245499]
[1773321627238,0.92899545,2060.9,2060.4,0.00444441]
[1773321627638,0.92899545,2060.9,2060.4,0.94245499]
[1773321628444,0.92899545,2060.9,2059.9,0.24269]
[1773321628445,0.92899545,2060.9,2060.2,0.93801058]
[1773321628942,0.92899545,2060.9,2060.0,0.93801058]
[1773321629443,0.92899545,2060.9,2060.0,0.94297031]
[1773321629844,0.92899545,2060.9,2060.0,1.18442686]
[1773321630042,0.92899545,2060.9,2060.1,0.93801058]
[1773321632040,0.92899545,2060.9,2060.0,0.00495973]
[1773321632340,0.92899545,2060.3,2059.2,0.93801058]
[1773321632646,0.92899545,2060.2,2059.2,0.93801058]
[1773321633338,0.92899545,2060.2,2059.2,0.94237002]
[1773321634434,0.92899545,2060.2,2059.2,0.00435944]
[1773321634639,0.92899545,2060.0,2059.2,0.00435944]
[1773321634840,0.92899545,2059.9,2059.2,0.00435944]
[1773321635039,0.92899545,2059.8,2059.2,0.00435944]
[1773321635333,0.92899545,2059.8,2059.2,0.94237002]
[1773321638544,0.92899545,2059.8,2059.2,0.00435944]
[1773321638748,0.92899545,2059.8,2058.1,0.93801058]
[1773321638749,0.92899545,2059.3,2058.1,0.93801058]
[1773321639345,0.92899545,2059.3,2058.3,0.93801058]
[1773321639545,0.92899545,2059.3,2058.5,0.93801058]
[1773321639746,0.00412286,2059.3,2058.5,0.9428743]
[1773321640848,0.93311831,2059.3,2058.5,0.9428743]
[1773321642645,0.93151831,2059.3,2058.5,0.9428743]
[1773321649644,0.93290895,2059.0,2058.1,1.22622956]
[1773321650647,0.93290895,2059.0,2058.1,0.98904116]
[1773321650854,0.93290895,2059.0,2058.1,0.99458755]
[1773321654755,0.93290895,2059.0,2058.1,0.95527628]
[1773321656859,0.93290895,2059.0,2058.1,0.00554639]
[1773321657155,2.12006331,2059.1,2058.1,0.00554639]
[1773321657156,1.22380162,2058.7,2058.1,0.00554639]
[1773321657359,0.97800162,2058.6,2058.1,0.00554639]
[1773321657656,1.22179162,2058.6,2057.4,0.94972989]
[1773321657863,0.97800162,2058.6,2057.5,0.94972989]
[1773321658762,0.97800162,2058.6,2057.5,0.95508846]
[1773321662863,0.97800162,2057.8,2056.7,0.94972989]
[1773321663057,0.97800162,2057.7,2056.7,0.94972989]
[1773321663260,0.97800162,2057.1,2056.3,0.94972989]
[1773321663456,0.97800162,2057.1,2056.5,0.94972989]
[1773321663662,0.97800162,2057.3,2056.5,0.94972989]
[1773321663863,0.97800162,2057.2,2056.5,0.0044926]
[1773321665065,0.97800162,2057.2,2056.5,0.95422249]
[1773321665269,0.00592874,2057.3,2056.5,0.95422249]
[1773321666565,0.98393036,2057.3,2056.5,0.95422249]
[1773321668268,0.97800162,2057.7,2056.6,0.94972989]
[1773321668569,0.97800162,2057.7,2056.7,0.94972989]
[1773321669165,0.97800162,2057.5,2056.7,0.94972989]
[1773321669472,0.98304054,2057.5,2056.5,0.95422249]
[1773321670470,0.97800162,2057.2,2056.5,0.0044926]
[1773321670669,0.97800162,2057.1,2056.5,0.0044926]
[1773321671064,0.97800162,2057.1,2056.4,0.73353786]
[1773321671261,0.97580162,2057.1,2056.4,0.59084271]
[1773321671466,0.97800162,2056.9,2056.0,0.94972989]
[1773321671660,0.97800162,2056.9,2055.2,7.627]
[1773321671661,0.97800162,2056.6,2055.7,0.94972989]
[1773321672172,0.97800162,2056.9,2055.9,0.94972989]
[1773321673971,0.97800162,2056.9,2056.1,0.94972989]
[1773321674972,0.97800162,2057.4,2056.1,0.94972989]
[1773321676070,0.97800162,2057.0,2056.1,0.94972989]
[1773321676271,0.97800162,2056.8,2055.7,0.95530355]
[1773321676469,0.97800162,2056.6,2055.7,0.00557366]
[1773321676661,0.97800162,2056.4,2055.3,0.94972989]
[1773321677264,0.97800162,2055.8,2055.2,0.24022022]
[1773321677470,0.97800162,2055.8,2055.2,0.94972989]
[1773321677665,0.98225214,2055.8,2055.2,0.95554792]
[1773321677870,0.97800162,2056.3,2055.2,0.95554792]
[1773321678869,0.98388922,2056.3,2055.2,0.95554792]
[1773321679070,0.98388922,2056.3,2055.3,0.94972989]
[1773321679270,0.0058876,2056.3,2055.5,1.19291989]
[1773321679575,0.97800162,2056.7,2055.8,1.19448989]
[1773321679772,0.97800162,2056.7,2055.6,0.2432]
[1773321679773,0.97800162,2056.7,2056.1,1.19514989]
[1773321679974,0.97800162,2056.7,2055.8,1.19390989]
[1773321680174,0.97800162,2056.7,2055.8,0.94972989]
[1773321680373,0.98339878,2056.7,2055.8,0.94972989]
[1773321680770,1.00264156,2056.5,2055.3,0.93290725]
[1773321680970,1.00264156,2056.3,2055.3,0.93290725]
[1773321681178,1.00264156,2056.2,2055.3,0.93290725]
[1773321681673,1.00264156,2056.2,2055.2,0.00581803]
[1773321683275,1.00264156,2056.0,2055.2,0.00581803]
[1773321683986,1.00264156,2056.0,2055.1,0.02455924]
[1773321684182,1.00264156,2056.0,2054.2,40.8]
[1773321684183,1.00264156,2055.1,2054.5,1e-08]
[1773321684477,1.00264156,2055.1,2054.2,0.93290725]
[1773321684478,9.328,2055.0,2054.2,0.93290725]
[1773321684680,1.00264156,2055.3,2054.2,0.93290725]
[1773321684880,1.00264156,2055.2,2054.2,0.93766164]
[1773321685183,1.00264156,2055.2,2054.2,0.00475439]
[1773321685578,1.00264156,2055.2,2054.2,0.93766164]
[1773321685980,1.00264156,2055.0,2054.2,0.93766164]
[1773321686376,9.327,2055.1,2054.2,0.93766164]
[1773321686782,1.00264156,2055.2,2054.2,0.93766164]
[1773321687196,0.00563515,2055.3,2054.2,0.93766164]
[1773321687490,0.00563515,2055.3,2054.4,0.93290725]
[1773321687690,1.00264156,2055.7,2054.6,0.93290725]
[1773321688492,1.00264156,2055.7,2054.7,1.18018725]
[1773321688684,1.00655704,2055.7,2054.6,0.93290725]
[1773321688886,1.00264156,2055.3,2054.2,0.00475439]
[1773321689187,1.00264156,2055.3,2053.5,0.93290725]
[1773321689188,1.00264156,2054.3,2053.5,0.93290725]
[1773321689387,1.00264156,2054.7,2053.5,0.93290725]
[1773321689591,10.33264156,2054.7,2053.5,0.93290725]
[1773321689791,1.00264156,2054.7,2053.5,0.93290725]
[1773321689991,1.00264156,2054.7,2053.7,0.93290725]
[1773321690189,1.00264156,2055.1,2053.9,1.17789725]
[1773321690390,1.00264156,2055.1,2054.2,0.93290725]
[1773321690788,1.00264156,2055.1,2053.7,0.00476689]
[1773321690789,7.23021156,2055.1,2053.7,0.93767414]
[1773321690993,1.00264156,2054.5,2053.7,0.93767414]
[1773321691195,1.00264156,2054.3,2053.7,0.93767414]
[1773321691595,1.00264156,2054.3,2053.7,0.00476689]
[1773321692498,1.00264156,2054.3,2053.1,0.93290725]
[1773321693391,9.347,2054.2,2053.1,0.93827143]
[1773321693590,1.00264156,2054.1,2053.1,0.93827143]
[1773321693789,0.00503155,2054.2,2053.1,0.93827143]
[1773321694292,0.00503155,2054.2,2053.3,0.93290725]
[1773321694891,1.00767311,2054.2,2053.4,1.17815725]
[1773321695092,1.00767311,2054.2,2053.6,0.93290725]
[1773321695391,0.00503155,2054.2,2053.9,0.93290725]
[1773321695790,0.00503155,2054.2,2053.2,0.24348]
[1773321695791,1.00767311,2054.2,2053.3,0.93290725]
[1773321696395,0.00503155,2054.2,2053.5,0.93290725]
[1773321696698,0.00503155,2054.2,2053.7,1.18745725]
[1773321696997,0.00503155,2054.2,2053.9,1.18587725]
[1773321697196,10.35964156,2054.5,2054.0,1.18614725]
[1773321697398,1.00264156,2054.4,2054.0,1.18614725]
[1773321697602,10.36264156,2054.7,2054.1,0.93290725]
[1773321698093,1.00264156,2054.6,2054.1,0.93290725]
[1773321698397,1.00699007,2054.6,2054.1,0.93290725]
[1773321699695,1.00264156,2054.4,2053.3,0.93290725]
[1773321700201,1.24597156,2054.5,2053.3,0.93290725]
[1773321701495,1.24597156,2054.5,2053.4,0.93290725]
[1773321701696,1.00264156,2054.5,2053.7,0.93290725]
[1773321701891,1.00264156,2054.5,2053.8,0.93290725]
[1773321702191,1.00264156,2054.3,2053.4,0.93290725]
[1773321703699,10.36764156,2054.3,2053.4,0.93290725]
[1773321704098,0.97487333,2054.2,2053.4,0.93290725]
[1773321706002,0.97487333,2054.0,2053.2,1.00587121]
[1773321706204,0.97487333,2053.8,2053.2,1.00587121]
[1773321708810,0.97487333,2053.8,2053.1,0.00536418]
[1773321709011,0.97487333,2053.8,2052.8,1.00587121]
[1773321709906,0.97487333,2054.2,2053.0,1.00587121]
[1773321711699,0.97487333,2054.2,2053.1,0.24349]
[1773321711905,0.97487333,2054.2,2053.2,0.94585353]
[1773321713499,0.97259313,2054.0,2053.2,0.94585353]
[1773321717608,0.97259313,2053.8,2053.2,0.94585353]
[1773321718613,0.97259313,2053.8,2052.9,0.94585353]
[1773321718911,1.21599313,2053.9,2052.9,0.94585353]
[1773321719311,0.97259313,2053.8,2052.9,0.94585353]
[1773321720012,0.97259313,2053.7,2052.9,0.94585353]
[1773321721213,7.32370276,2053.9,2052.9,0.94585353]
[1773321721413,1.21599313,2053.9,2052.9,0.94585353]
[1773321721611,0.97259313,2053.8,2052.9,0.94585353]
[1773321722617,0.97259313,2053.8,2053.0,0.94585353]
[1773321723115,0.97259313,2054.0,2053.1,1.19258353]
[1773321723314,0.97259313,2054.0,2053.4,0.94585353]
[1773321723511,7.0782556,2054.2,2053.4,1.19296353]
[1773321723819,0.97259313,2054.2,2053.7,0.94585353]
[1773321724114,15.31859918,2054.6,2053.8,0.94585353]
[1773321724115,0.97694164,2054.6,2053.8,0.94585353]
[1773321724619,0.97259313,2054.4,2053.8,0.94585353]
[1773321724918,0.97259313,2054.4,2053.1,2.37131139]
[1773321724919,0.97259313,2054.4,2053.5,0.94585353]
[1773321725618,0.97259313,2054.4,2053.6,0.94585353]
[1773321725818,0.97694164,2054.6,2053.9,0.94585353]
[1773321726023,0.00434851,2054.6,2054.1,1.19355353]
[1773321726219,0.97694164,2054.6,2054.2,0.94585353]
[1773321726522,0.97694164,2054.6,2053.6,0.94585353]
[1773321726820,0.97694164,2054.6,2053.7,0.94585353]
[1773321728215,0.00434851,2054.6,2054.0,1.19013353]
[1773321728420,0.00434851,2054.6,2054.2,0.94585353]
[1773321728615,0.00434851,2054.6,2054.2,1.19068353]
[1773321728812,5.0116227,2055.2,2054.4,0.94585353]
[1773321729119,0.97259313,2055.1,2054.2,0.94585353]
[1773321729320,0.97259313,2054.9,2054.2,0.94585353]
[1773321729820,0.00506315,2054.9,2054.2,0.95074152]
[1773321730715,0.97765628,2054.9,2054.2,0.95074152]
[1773321731220,0.00506315,2054.9,2054.2,0.95074152]
[1773321731423,0.97259313,2054.8,2054.2,0.95074152]
[1773321731621,0.97259313,2054.8,2054.2,0.00488799]
[1773321732419,0.97259313,2054.6,2054.2,0.00488799]
[1773321732718,0.97259313,2054.4,2053.3,0.94585353]
[1773321732918,0.97259313,2054.6,2053.5,0.94585353]
[1773321733119,0.97259313,2054.8,2053.7,0.94585353]
[1773321733315,0.97259313,2054.6,2053.7,0.94585353]
[1773321733518,0.97259313,2054.6,2053.7,0.94972721]
[1773321733714,0.97259313,2054.4,2053.7,0.94972721]
[1773321733915,0.97259313,2054.6,2053.7,0.94972721]
[1773321734122,0.97259313,2054.5,2053.7,0.94972721]
[1773321737227,0.97259313,2054.3,2053.7,0.94972721]
[1773321737426,0.97259313,2054.3,2053.7,0.00387368]
[1773321737927,0.97259313,2054.3,2053.5,0.94585353]
[1773321738726,0.97259313,2054.3,2052.9,2.37655346]
[1773321738929,0.97259313,2054.1,2053.2,0.94585353]
[1773321741428,0.92729289,2053.9,2053.2,0.94585353]
[1773321743732,0.92729289,2053.9,2053.0,0.97163339]
[1773321751234,0.92729289,2054.1,2053.2,0.97163339]
[1773321751933,0.92729289,2054.1,2053.4,0.97163339]
[1773321752129,0.92729289,2054.1,2053.7,0.97163339]
[1773321752529,0.92729289,2054.1,2053.5,0.97163339]
[1773321752730,2.37636346,2054.6,2053.5,0.97163339]
[1773321752934,0.92729289,2054.3,2053.5,0.97163339]
[1773321753126,0.92729289,2054.1,2053.5,0.97163339]
[1773321753326,0.92729289,2054.1,2053.0,0.97163339]
[1773321754035,1.17065289,2054.2,2053.1,0.97163339]
[1773321754232,0.92729289,2054.1,2053.1,0.97163339]
[1773321754736,0.92729289,2054.1,2053.1,1.21787339]
[1773321754936,0.92729289,2054.1,2053.0,2.37654346]
[1773321754937,0.92729289,2054.1,2053.4,0.97163339]
[1773321755134,0.92729289,2054.1,2053.6,0.97163339]
[1773321755333,0.92729289,2054.1,2053.7,0.97163339]
[1773321755735,0.92729289,2054.3,2053.7,0.97163339]
[1773321756136,0.92729289,2054.3,2053.1,0.97163339]
[1773321756736,0.92729289,2054.3,2053.3,0.97163339]
[1773321759037,0.92729289,2054.3,2053.5,0.97163339]
[1773321760736,0.92729289,2054.0,2053.5,0.97163339]
[1773321760932,0.92729289,2053.8,2053.1,0.97163339]
[1773321762539,0.2434,2053.9,2053.1,1.21688339]
[1773321762836,0.92729289,2054.0,2053.4,0.97163339]
[1773321765537,0.91890736,2053.8,2053.1,0.99417735]
[1773321767640,0.91890736,2053.6,2052.9,1.00030792]
[1773321768350,0.91890736,2053.4,2052.9,0.00613057]
[1773321768543,0.92484589,2053.4,2052.9,0.00613057]
[1773321768739,0.92484589,2053.4,2052.8,0.99417735]
[1773321769746,0.92484589,2053.4,2052.8,1.0002642]
[1773321769945,0.92484589,2053.4,2052.8,0.00608685]
[1773321770343,0.92484589,2053.4,2052.2,0.2436]
[1773321770344,0.96460315,2053.2,2052.2,0.96154708]
[1773321770548,0.96460315,2053.0,2052.2,0.96154708]
[1773321770848,0.96460315,2052.9,2052.2,0.96154708]
[1773321771349,0.96460315,2052.8,2052.2,0.96533843]
[1773321771644,0.96460315,2052.8,2051.5,50.87876657]
[1773321771645,0.96460315,2052.8,2051.5,0.96154708]
[1773321771943,6.09439376,2052.8,2051.9,0.96154708]
[1773321772151,0.96460315,2053.0,2051.9,0.96154708]
[1773321772444,0.96460315,2053.0,2051.9,0.96638932]
[1773321772850,10.16260315,2052.9,2051.9,0.96638932]
[1773321773044,0.96460315,2052.8,2051.9,0.96638932]
[1773321773245,0.96460315,2052.7,2051.9,0.96638932]
[1773321774142,0.96460315,2052.6,2051.9,0.96638932]
[1773321775843,0.96460315,2053.1,2051.9,0.96638932]
[1773321776047,0.96460315,2052.9,2052.1,0.96154708]
[1773321776652,0.96460315,2052.9,2052.3,0.96154708]
[1773321776843,0.96460315,2053.1,2052.7,0.96154708]
[1773321777250,0.96460315,2053.1,2052.1,0.96154708]
[1773321777650,0.96460315,2052.9,2052.1,0.96154708]
[1773321778352,0.96460315,2052.8,2052.1,0.96154708]
[1773321778943,0.96460315,2052.8,2051.9,0.96638932]
[1773321779149,0.96460315,2052.6,2051.9,0.96638932]
[1773321779545,0.96460315,2052.6,2051.9,0.00484224]
[1773321780255,0.96460315,2052.6,2051.9,0.96638932]
[1773321782157,0.96460315,2052.8,2051.9,0.96638932]
[1773321784061,0.96460315,2053.0,2052.0,0.96154708]
[1773321784261,0.96460315,2053.0,2052.1,0.96154708]
[1773321784463,0.96460315,2053.3,2052.5,0.96154708]
[1773321784664,0.96460315,2053.2,2052.0,0.96154708]
[1773321784858,0.96460315,2052.9,2052.0,0.96154708]
[1773321786758,0.96460315,2052.9,2052.3,0.96154708]
[1773321787057,0.96460315,2052.9,2052.0,0.96154708]
[1773321787658,0.96460315,2052.9,2052.1,0.96154708]
[1773321787865,0.96460315,2053.1,2052.5,0.96154708]
[1773321788064,0.96460315,2053.1,2052.1,0.24361]
[1773321788065,0.96460315,2053.1,2052.7,0.96154708]
[1773321788255,0.96460315,2053.1,2052.2,0.96154708]
[1773321788860,0.96460315,2053.0,2052.2,0.96154708]
[1773321789468,0.96460315,2052.8,2052.0,0.96154708]
[1773321793068,0.96460315,2053.1,2052.0,0.96154708]
[1773321793267,0.96460315,2052.9,2052.0,0.96154708]
[1773321793975,0.96460315,2053.1,2052.1,0.96154708]
[1773321795469,0.96460315,2053.0,2052.1,0.96154708]
[1773321795670,6.09684848,2053.4,2051.9,0.00484224]
[1773321795671,0.96460315,2052.8,2051.9,0.00484224]
[1773321795868,0.96460315,2052.8,2051.9,0.96638932]
[1773321797275,0.96460315,2052.6,2051.9,0.00484224]
[1773321798071,0.96460315,2052.4,2051.9,0.00484224]
[1773321798271,0.96460315,2052.4,2051.9,0.96638932]
[1773321799373,10.15860315,2052.6,2051.9,0.96638932]
[1773321799574,0.96460315,2052.6,2051.9,0.96638932]
[1773321799970,0.96460315,2052.9,2051.9,0.96638932]
[1773321800178,0.96460315,2052.8,2051.9,0.96638932]
[1773321800680,0.91895064,2052.6,2051.5,0.95852983]
[1773321801089,0.91895064,2052.5,2051.5,0.95852983]
[1773321801275,0.91895064,2052.4,2051.5,0.95852983]
[1773321801676,0.91895064,2052.4,2051.5,0.9621393]
[1773321801877,0.91895064,2052.2,2051.5,0.9621393]
[1773321803883,0.91895064,2052.2,2051.5,0.00360947]
[1773321804285,0.91895064,2052.2,2050.8,48.435]
[1773321804286,0.91895064,2052.0,2050.8,0.95852983]
[1773321804880,0.91895064,2051.9,2050.8,0.95852983]
[1773321805184,0.91895064,2051.7,2050.8,0.95852983]
[1773321805384,0.91895064,2051.7,2050.8,0.96364328]
[1773321805884,0.00473359,2051.9,2051.0,0.95852983]
[1773321806084,0.00473359,2051.9,2051.1,0.95852983]
[1773321806289,0.92368423,2051.9,2051.3,0.95852983]
[1773321806478,0.92368423,2051.9,2051.4,1.20765983]
[1773321806683,0.92368423,2051.9,2051.6,1.20729983]
[1773321806882,0.91895064,2052.1,2051.6,0.95852983]
[1773321807484,0.91895064,2052.5,2051.8,0.95852983]
[1773321807688,0.91895064,2052.5,2051.9,0.95852983]
[1773321807888,0.67528211,2052.5,2052.1,0.95852983]
[1773321808190,0.00397147,2052.5,2052.1,0.95852983]
[1773321808385,0.91895064,2052.7,2052.1,0.95852983]
[1773321808587,0.91895064,2052.6,2051.4,0.95852983]
[1773321808795,0.91895064,2052.4,2051.6,0.95852983]
[1773321809187,0.91895064,2052.4,2051.8,0.95852983]
[1773321809384,0.00430894,2052.4,2052.1,0.95852983]
[1773321809583,0.00163468,2052.4,2052.2,0.95852983]
[1773321810088,0.00163468,2052.4,2051.4,0.95852983]
[1773321810287,0.00163468,2052.4,2051.5,1.20731983]
[1773321810492,0.00163468,2052.4,2051.3,0.48820393]
[1773321810493,0.00163468,2052.4,2051.6,1.21317983]
[1773321810689,0.00163468,2052.4,2051.8,1.21216983]
[1773321810893,0.00163468,2052.4,2051.9,1.21860983]
[1773321811194,0.00163468,2052.4,2052.1,1.21874983]
[1773321811389,0.24351,2053.0,2052.4,1.20248983]
[1773321811390,0.91895064,2053.0,2052.4,1.20248983]
[1773321811590,0.91895064,2053.0,2052.6,1.20996983]
[1773321811785,4.28247957,2053.5,2052.6,1.20996983]
[1773321811786,0.91895064,2053.4,2052.6,1.20996983]
[1773321812088,0.91895064,2053.4,2052.6,0.95852983]
[1773321812388,6.10787331,2053.4,2052.6,0.96282472]
[1773321812590,0.91895064,2053.3,2052.6,0.96282472]
[1773321812795,0.91895064,2053.2,2052.6,0.96282472]
[1773321813899,0.91895064,2053.2,2052.6,0.00429489]
[1773321814489,10.10718881,2053.4,2052.6,0.96282472]
[1773321814689,0.91895064,2053.3,2052.6,0.96282472]
[1773321815695,0.00423817,2053.4,2052.6,0.96282472]
[1773321815895,0.92318881,2053.4,2052.6,0.96282472]
[1773321816591,0.00423817,2053.4,2052.6,0.96282472]
[1773321817702,0.92318881,2053.4,2052.6,0.96282472]
[1773321818991,0.00423817,2053.4,2052.6,0.96282472]
[1773321819193,0.00423817,2053.4,2052.7,0.95852983]
[1773321819402,0.00423817,2053.4,2052.8,1.20470983]
[1773321819690,0.00423817,2053.4,2052.6,0.00429489]
[1773321819691,0.00423817,2053.4,2052.9,1.20787983]
[1773321819894,0.00423817,2053.4,2053.1,1.21020983]
[1773321820095,0.00423817,2053.4,2053.1,0.95852983]
[1773321820292,0.92318881,2053.4,2052.8,1.20728983]
[1773321820492,0.92318881,2053.4,2052.8,0.95852983]
[1773321820895,0.00423817,2053.4,2053.0,0.95852983]
[1773321821086,9.187,2053.8,2053.2,0.95852983]
[1773321821087,0.91895064,2053.7,2053.2,0.95852983]
[1773321821291,0.91895064,2053.7,2052.6,0.00429489]
[1773321821292,0.91895064,2053.7,2052.7,0.95852983]
[1773321821995,0.91895064,2053.6,2052.7,0.95852983]
[1773321823098,0.91895064,2053.6,2052.9,0.95852983]
[1773321824199,0.91469921,2053.4,2052.7,0.99170397]
[1773321825798,0.91469921,2053.5,2052.7,0.99170397]
[1773321826698,0.9206977,2053.7,2052.7,0.99170397]
[1773321827196,0.9206977,2053.7,2052.9,1.23606397]
[1773321827397,0.9206977,2053.7,2052.9,1.23551397]
[1773321827596,0.91469921,2054.1,2053.1,0.99170397]
[1773321827799,0.91469921,2054.4,2053.3,1.23692397]
[1773321827994,0.91469921,2054.6,2053.7,0.99170397]
[1773321828193,0.24328,2055.0,2053.7,1.23546397]
[1773321828194,0.91469921,2054.9,2053.7,1.23546397]
[1773321828703,0.91469921,2054.9,2053.7,0.99170397]
[1773321828903,0.92093679,2054.9,2053.7,0.99170397]
[1773321829501,0.92093679,2054.9,2053.9,0.99170397]
[1773321830902,0.00623758,2054.9,2054.1,0.9938967]
[1773321831197,0.91527191,2055.2,2054.1,0.99954127]
[1773321831906,0.91527191,2055.0,2054.1,0.99954127]
[1773321832106,0.91527191,2054.8,2054.1,0.99954127]
[1773321832303,0.92085916,2054.8,2054.1,0.99954127]
[1773321832902,0.92085916,2054.8,2054.1,0.00564457]
[1773321833105,0.92085916,2054.8,2053.2,7.635]
[1773321833106,0.91527191,2054.4,2053.1,0.9938967]
[1773321833302,0.91527191,2054.2,2053.1,0.9938967]
[1773321834407,0.91527191,2054.2,2053.1,0.99921532]
[1773321837701,0.91527191,2054.3,2053.1,0.99921532]
[1773321837911,0.91527191,2054.1,2053.1,0.99921532]
[1773321842517,0.91527191,2054.3,2053.1,0.99921532]
[1773321844309,0.91527191,2054.3,2053.3,0.9938967]
[1773321844514,0.91527191,2054.3,2053.3,1.2381467]
[1773321844715,0.91527191,2054.3,2053.3,0.9938967]
[1773321845912,0.91527191,2054.5,2053.4,0.9938967]
[1773321846112,0.91527191,2054.5,2053.7,1.2422967]
[1773321846508,0.91527191,2054.6,2053.7,0.9938967]
[1773321848413,0.92085916,2054.8,2053.7,0.9938967]
[1773321849116,0.92085916,2054.8,2053.9,0.9938967]
[1773321849311,0.00558725,2054.8,2053.9,0.9938967]
[1773321849713,0.00558725,2054.8,2053.9,1.2402367]
[1773321851520,0.00558725,2054.8,2054.1,1.2546667]
[1773321851815,0.92085916,2054.8,2054.4,0.9938967]
[1773321852021,0.92085916,2054.8,2053.8,0.9938967]
[1773321852210,0.92085916,2054.8,2053.8,1.2411067]
[1773321852611,0.24325,2055.2,2053.8,1.2411067]
[1773321852820,0.91527191,2055.0,2054.1,0.9938967]
[1773321853117,0.91527191,2054.6,2053.7,0.9938967]
[1773321853317,0.91527191,2054.6,2053.8,1.2480767]
[1773321853518,0.91527191,2054.6,2053.9,1.2448467]
[1773321853717,0.92138884,2054.6,2053.9,1.2389867]
[1773321853918,0.92138884,2054.6,2053.9,0.9938967]
[1773321854622,0.92138884,2054.6,2053.7,1.2388867]
[1773321854812,0.00611693,2054.6,2053.7,0.9938967]
[1773321855325,0.00611693,2054.6,2053.7,1.2384167]
[1773321855521,0.00611693,2054.6,2053.7,1.2378367]
[1773321855921,0.00611693,2054.6,2053.9,0.9938967]
[1773321856118,0.00611693,2054.6,2054.0,1.2515067]
[1773321856325,0.91527191,2054.9,2054.1,0.9938967]
[1773321857425,0.91527191,2054.7,2053.5,0.9938967]
[1773321858627,1.15857191,2054.7,2053.5,0.9938967]
[1773321858924,0.91527191,2054.6,2053.5,0.9938967]
[1773321861516,0.91527191,2054.6,2053.7,1.00629561]
[1773321861923,0.99030949,2054.8,2053.7,1.00629561]
[1773321862322,0.99030949,2054.8,2053.7,1.24999561]
[1773321862523,0.99030949,2054.8,2053.7,1.00629561]
[1773321862827,0.99030949,2054.8,2053.7,1.25139561]
[1773321863023,0.99030949,2054.8,2053.7,1.00629561]
[1773321863422,0.99030949,2054.7,2053.8,1.00629561]
[1773321863619,0.99030949,2054.7,2053.8,1.25094561]
[1773321864020,0.99030949,2054.7,2053.8,1.25105561]
[1773321864419,0.99030949,2054.7,2053.8,1.00629561]
[1773321864626,0.99030949,2054.7,2053.8,1.25033561]
[1773321865222,0.99477331,2054.9,2053.8,1.25033561]
[1773321865427,0.99477331,2054.9,2053.8,1.00629561]
[1773321866932,0.99477331,2054.9,2053.8,1.24995561]
[1773321867137,0.99477331,2054.9,2053.8,1.00629561]
[1773321867436,0.99477331,2054.9,2053.8,1.25008561]
[1773321867834,0.99477331,2054.9,2053.8,1.00629561]
[1773321868131,0.99477331,2054.9,2053.8,1.25085561]
[1773321868434,0.99477331,2054.9,2053.9,1.00629561]
[1773321869240,0.99477331,2054.9,2053.9,1.25710561]
[1773321869432,0.00446382,2054.9,2053.9,1.25710561]
[1773321869639,0.99477331,2054.9,2054.1,1.25266561]
[1773321871739,0.99477331,2054.9,2054.1,1.00629561]
[1773321872041,0.99477331,2054.9,2054.1,1.25446561]
[1773321872638,0.99477331,2054.9,2054.1,1.00629561]
[1773321875344,0.00446382,2054.9,2054.1,1.00629561]
[1773321875840,0.99477331,2054.9,2054.1,1.00629561]
[1773321876036,0.00446382,2054.9,2054.1,1.25220561]
[1773321876743,7.11026886,2055.2,2054.3,1.00629561]
[1773321876940,0.99030949,2055.4,2054.6,1.00629561]
[1773321877245,0.99030949,2055.4,2054.3,2.13225731]
[1773321877246,0.99030949,2055.4,2055.0,1.26253561]
[1773321877843,0.99491604,2055.4,2055.0,0.00481345]
[1773321878245,0.99491604,2055.4,2055.0,1.01110906]
[1773321878643,0.99491604,2055.4,2055.0,0.00481345]
[1773321879042,0.99491604,2055.4,2055.0,1.01110906]
[1773321879245,0.99491604,2055.4,2055.0,0.00481345]
[1773321879946,0.99491604,2055.4,2054.5,1.00629561]
[1773321880144,0.99030949,2055.2,2054.2,1.00629561]
[1773321880446,0.99030949,2055.1,2054.2,1.00629561]
[1773321880747,0.99030949,2055.1,2054.2,1.01255989]
[1773321882145,0.99030949,2055.0,2054.2,1.01255989]
[1773321883146,6.11361279,2055.2,2054.2,1.01255989]
[1773321883449,0.97925725,2055.1,2054.2,1.01255989]
[1773321885543,7.09200714,2055.3,2054.4,0.95496183]
[1773321885748,0.97925725,2055.3,2054.4,0.95496183]
[1773321888151,0.9838638,2055.4,2054.4,0.95496183]
[1773321890143,0.96589154,2055.2,2054.4,0.95496183]
[1773321892857,0.96589154,2055.0,2054.2,0.98387311]
[1773321895661,0.96589154,2055.3,2054.2,0.98387311]
[1773321896160,0.96589154,2055.2,2054.2,0.98387311]
[1773321896363,0.96589154,2055.2,2054.3,0.97760883]
[1773321896857,0.97049809,2055.4,2054.5,0.97760883]
[1773321897260,0.00460655,2055.4,2054.5,0.97760883]
[1773321897961,0.00460655,2055.4,2054.6,0.97760883]
[1773321898857,0.97049809,2055.4,2054.6,0.97760883]
[1773321899765,0.96589154,2055.6,2054.8,0.97760883]
[1773321900563,7.07958334,2055.8,2054.8,0.97760883]
[1773321900763,0.9696568,2055.8,2055.0,0.97760883]
[1773321901960,0.96589154,2055.7,2055.0,0.97760883]
[1773321902366,0.96589154,2055.5,2054.7,0.97760883]
[1773321903365,0.96589154,2055.7,2054.7,0.97760883]
[1773321903868,0.9696568,2055.8,2054.8,0.97760883]